bitfinex-derivatives/quotes_SOLF0:USTF0_20250808
["timestamp","ask_amount","ask_price","bid_price","bid_amount"]
[1754637554922,5.22605248,175.78,175.76,3.03]
[1754637555621,5.22605248,175.78,175.74,3.03]
[1754637556124,5.22605248,175.89,175.74,3.03]
[1754637556418,5.22605248,175.76,175.73,489.14]
[1754637556621,5.22605248,175.76,175.74,3.03]
[1754637557219,5.22605248,175.76,175.75,3.03]
[1754637557418,5.22605248,175.77,175.75,3.03]
[1754637557619,5.22605248,175.78,175.75,3.03]
[1754637558525,5.22605248,175.81,175.75,3.03]
[1754637558714,5.22605248,175.81,175.75,8.7186]
[1754637558918,5.22605248,175.81,175.75,3.03]
[1754637559419,2.37923572,175.81,175.74,3.03]
[1754637559824,2.37923572,175.81,175.75,5.6887]
[1754637560025,2.37923572,175.81,175.76,3.03]
[1754637560325,2.37923572,175.81,175.78,3.03]
[1754637561026,2.37923572,175.81,175.79,3.03]
[1754637561416,2.37923572,175.81,175.73,106.42]
[1754637561623,5.22605248,175.79,175.75,3.03]
[1754637561826,5.22605248,175.78,175.76,3.03]
[1754637562322,5.22605248,175.78,175.74,3.03]
[1754637562523,5.22605248,175.76,175.75,3.03]
[1754637563223,5.22605248,175.76,175.73,3.03]
[1754637563822,5.22605248,175.82,175.73,5.7]
[1754637564027,5.22605248,175.84,175.75,3.03]
[1754637564425,5.22605248,175.84,175.79,3.03]
[1754637564622,5.22605248,175.84,175.8,3.03]
[1754637565523,5.22605248,175.86,175.8,3.03]
[1754637565722,5.22605248,175.87,175.8,3.03]
[1754637565923,5.22605248,175.85,175.8,3.03]
[1754637566128,95.44559628,175.96,175.8,3.03]
[1754637566425,5.22605248,175.85,175.8,3.03]
[1754637566829,5.22605248,175.85,175.81,5.6869]
[1754637567027,5.22605248,175.85,175.83,3.03]
[1754637567225,5.22605248,175.85,175.84,3.03]
[1754637567529,5.22605248,175.85,175.8,3.03]
[1754637567829,5.22605248,175.83,175.8,3.03]
[1754637568226,5.22605248,175.83,175.77,106.28]
[1754637568426,5.22605248,175.81,175.78,3.03]
[1754637568631,5.22605248,175.89,175.78,3.03]
[1754637568830,5.22605248,175.81,175.8,3.03]
[1754637569528,5.22605248,175.81,175.78,3.03]
[1754637570027,5.22605248,175.81,175.79,7.11670994]
[1754637570331,5.22605248,175.81,175.8,7.11670994]
[1754637570533,5.22605248,175.83,175.8,10.14670994]
[1754637570732,5.22605248,175.83,175.82,3.03]
[1754637570928,5.22605248,175.83,175.82,10.14670994]
[1754637572036,5.22605248,175.83,175.82,7.11670994]
[1754637573129,5.22605248,175.85,175.83,3.07]
[1754637573334,5.22605248,175.85,175.77,106.28]
[1754637573335,5.22605248,175.87,175.84,7.11670994]
[1754637573536,5.22605248,175.87,175.86,3.07]
[1754637573736,5.22605248,175.87,175.86,10.18670994]
[1754637574438,5.22605248,175.89,175.86,10.18670994]
[1754637574633,5.22605248,175.9,175.87,7.11670994]
[1754637574832,5.22605248,175.9,175.89,3.07]
[1754637575034,5.22605248,175.91,175.89,10.18670994]
[1754637575233,5.22605248,175.91,175.9,7.11670994]
[1754637576139,381.69009656,176.01,175.9,10.18670994]
[1754637576337,381.69009656,176.01,175.92,3.07]
[1754637576338,5.22605248,176.0,175.92,3.07]
[1754637576540,5.22605248,175.94,175.93,10.18670994]
[1754637578239,5.22605248,175.96,175.93,7.11670994]
[1754637578540,5.22605248,176.0,175.94,7.11670994]
[1754637578734,5.22605248,175.95,175.93,3.07]
[1754637578940,5.22605248,175.95,175.94,2.61761227]
[1754637579535,5.22605248,175.95,175.88,3.07]
[1754637579736,5.22605248,175.92,175.88,3.07]
[1754637579938,5.22605248,175.92,175.86,5.6851]
[1754637580140,5.22605248,175.92,175.87,3.07]
[1754637580645,4.76199581,176.0,175.87,3.07]
[1754637580844,5.22605248,175.9,175.85,5.6856]
[1754637581038,5.22605248,175.9,175.89,3.07]
[1754637581640,5.22605248,175.9,175.85,3.07]
[1754637581842,5.22605248,175.86,175.8,3.07]
[1754637582541,5.22605248,175.88,175.8,3.07]
[1754637583037,5.22605248,175.9,175.81,5.22605248]
[1754637583243,5.22605248,175.9,175.82,3.07]
[1754637583547,4.76199581,176.0,175.87,5.6849]
[1754637583748,5.22605248,175.91,175.88,3.07]
[1754637586044,5.22605248,175.91,175.89,3.07]
[1754637586438,5.22605248,175.91,175.9,3.07]
[1754637587051,5.22605248,175.91,175.85,5.6854]
[1754637587251,5.22605248,175.91,175.86,3.07]
[1754637587449,5.22605248,175.91,175.86,5.6853]
[1754637587647,5.22605248,175.91,175.87,3.07]
[1754637587852,5.22605248,175.91,175.89,3.07]
[1754637588153,5.22605248,175.91,175.86,5.6853]
[1754637588354,5.22605248,175.91,175.9,3.07]
[1754637589558,5.22605248,175.93,175.91,3.07]
[1754637589756,5.22605248,175.92,175.91,3.07]
[1754637591146,5.22605248,175.92,175.83,5.22605248]
[1754637591147,5.22605248,175.94,175.83,3.07]
[1754637591352,5.22605248,175.96,175.86,3.07]
[1754637591553,5.22605248,175.96,175.87,2.61208862]
[1754637591755,5.22605248,175.97,175.92,3.07]
[1754637591956,5.22605248,175.97,175.94,3.07]
[1754637592256,5.22605248,175.97,175.95,2.61208862]
[1754637592457,5.22605248,175.97,175.96,2.61208862]
[1754637592648,5.22605248,175.97,175.96,5.68208862]
[1754637593456,4.318,175.96,175.91,5.6835]
[1754637593653,8.28605248,175.97,175.91,5.6835]
[1754637593853,8.28605248,175.97,175.92,5.6833]
[1754637594154,5.22605248,175.97,175.87,5.22605248]
[1754637594360,5.22605248,175.97,175.91,5.6835]
[1754637595362,5.22605248,175.97,175.92,5.6834]
[1754637595559,5.22605248,175.97,175.93,3.07]
[1754637595961,3.06,175.99,175.93,3.07]
[1754637596154,100.19481429,176.06,175.93,3.07]
[1754637596354,5.22605248,175.96,175.93,3.07]
[1754637596551,5.22605248,175.96,175.88,3.07]
[1754637596756,5.22605248,175.94,175.88,3.07]
[1754637596957,5.22605248,175.9,175.89,3.07]
[1754637597755,7.11238708,175.9,175.89,3.07]
[1754637598554,12.33843956,175.9,175.82,103.28025232]
[1754637598752,7.11238708,175.89,175.82,103.28025232]
[1754637598962,7.11238708,175.88,175.82,103.28025232]
[1754637599161,7.11238708,175.87,175.82,103.28025232]
[1754637599364,7.11238708,175.86,175.82,103.28025232]
[1754637599566,7.11238708,175.85,175.82,103.28025232]
[1754637599761,7.11238708,175.84,175.82,103.28025232]
[1754637599967,7.11238708,175.83,175.82,108.96685232]
[1754637600155,7.11238708,175.83,175.82,103.28025232]
[1754637600565,7.11238708,175.83,175.82,112.03685232]
[1754637600956,3.78238708,175.83,175.82,112.03685232]
[1754637601464,6.84238708,175.83,175.82,3.07]
[1754637601656,6.84238708,175.83,175.77,3.04]
[1754637601859,3.06,175.83,175.77,3.04]
[1754637602157,5.22605248,175.82,175.77,3.04]
[1754637602362,5.22605248,175.82,175.78,3.04]
[1754637602664,3.04,175.81,175.79,3.04]
[1754637602864,3.04,175.81,175.74,488.48]
[1754637603063,5.22605248,175.84,175.8,3.04]
[1754637603360,8.26605248,175.84,175.76,3.04]
[1754637603562,3.04,175.81,175.78,3.04]
[1754637603764,3.04,175.8,175.79,3.04]
[1754637604160,8.26605248,175.82,175.8,3.04]
[1754637604459,5.22605248,175.82,175.74,488.48]
[1754637604665,3.04,175.81,175.74,482.78727654]
[1754637606469,3.04,175.81,175.75,3.04]
[1754637606664,3.04,175.81,175.76,5.6884]
[1754637606869,3.04,175.84,175.74,488.01332902]
[1754637607071,3.04,175.84,175.77,3.04]
[1754637607369,3.04,175.84,175.79,3.04]
[1754637607568,3.04,175.82,175.8,3.04]
[1754637608270,3.04,175.84,175.75,3.04]
[1754637608570,3.04,175.81,175.75,3.04]
[1754637608771,3.04,175.83,175.79,3.04]
[1754637608959,3.04,175.99,175.76,3.04]
[1754637609164,3.04,175.85,175.78,3.04]
[1754637610170,3.04,175.85,175.79,3.04]
[1754637610465,3.04,175.83,175.77,3.04]
[1754637610868,3.04,175.85,175.79,5.22605248]
[1754637611171,3.04,175.87,175.81,3.04]
[1754637611560,5.22605248,175.86,175.75,8.26605248]
[1754637611764,3.04,175.85,175.77,3.04]
[1754637612269,3.04,175.85,175.78,8.7278]
[1754637612671,3.04,175.85,175.78,3.04]
[1754637612865,3.04,175.84,175.81,3.04]
[1754637613266,3.04,175.83,175.81,3.04]
[1754637613566,3.04,175.82,175.79,3.04]
[1754637613869,3.04,175.84,175.81,3.04]
[1754637614073,3.04,175.85,175.77,3.04]
[1754637614377,3.04,175.85,175.76,111.28605248]
[1754637614565,3.04,175.85,175.78,3.04]
[1754637614966,3.04,175.83,175.78,3.04]
[1754637615261,3.04,175.83,175.76,106.06]
[1754637615473,3.04,175.83,175.77,8.7281]
[1754637615767,3.04,175.83,175.77,3.04]
[1754637616772,5.22605248,175.82,175.76,106.06]
[1754637616969,3.04,175.81,175.76,106.06]
[1754637617165,3.04,175.81,175.76,109.1]
[1754637617369,5.22605248,175.82,175.77,3.04]
[1754637617572,3.04,175.8,175.78,3.04]
[1754637617873,3.04,175.81,175.76,109.1]
[1754637618073,5.22605248,175.82,175.77,3.04]
[1754637618272,3.04,175.79,175.77,3.04]
[1754637619175,3.04,175.81,175.77,3.04]
[1754637619470,5.22605248,175.82,175.78,3.04]
[1754637619673,3.04,175.81,175.76,109.1]
[1754637619870,3.04,175.8,175.77,3.04]
[1754637620067,3.04,175.81,175.77,3.04]
[1754637620272,3.04,175.8,175.77,3.04]
[1754637620476,3.04,175.79,175.77,3.04]
[1754637620774,3.04,175.81,175.76,106.06]
[1754637620977,3.04,175.79,175.76,106.06]
[1754637621570,3.04,175.78,175.76,106.06]
[1754637621772,5.22605248,175.89,175.76,106.06]
[1754637621971,5.22605248,175.81,175.77,3.04]
[1754637622274,5.22605248,175.83,175.79,3.04]
[1754637622474,5.22605248,175.81,175.76,109.1]
[1754637622670,5.22605248,175.81,175.76,106.06]
[1754637622973,5.22605248,175.79,175.76,106.06]
[1754637623575,5.22605248,175.79,175.76,109.1]
[1754637623875,3.04,175.79,175.77,3.04]
[1754637624076,3.04,175.81,175.77,3.04]
[1754637624465,3.04,175.81,175.78,3.04]
[1754637624670,3.04,175.8,175.79,3.04]
[1754637625274,3.04,175.83,175.77,3.04]
[1754637626876,5.22605248,175.84,175.78,3.04]
[1754637627275,8.26605248,175.84,175.78,3.04]
[1754637627778,3.04,175.82,175.78,3.04]
[1754637628077,3.04,175.8,175.76,109.09555676]
[1754637628273,7.11604756,175.79,175.77,5.6881]
[1754637628480,7.11604756,175.78,175.76,103.40715676]
[1754637628679,7.11604756,175.77,175.76,103.40715676]
[1754637628873,7.11604756,175.77,175.76,109.09555676]
[1754637629078,3.05604756,175.77,175.76,109.09555676]
[1754637629273,3.05604756,175.77,175.76,103.40715676]
[1754637629974,6.09604756,175.77,175.74,376.86727654]
[1754637630176,3.04,175.78,175.75,106.08]
[1754637630476,5.22605248,175.79,175.75,106.08]
[1754637630675,3.2074878,175.8,175.75,106.08]
[1754637630976,3.04,175.79,175.75,106.08]
[1754637631775,3.2074878,175.78,175.75,91.84583053]
[1754637632072,3.28,175.77,175.75,91.84583053]
[1754637632277,3.28,175.75,175.65,207.28082416]
[1754637632472,3.28,175.71,175.66,106.06]
[1754637632677,3.28,175.7,175.66,106.06]
[1754637632879,3.28,175.7,175.66,98.94073733]
[1754637633282,3.28,175.73,175.68,3.2074878]
[1754637633580,3.28,175.73,175.69,111.7706]
[1754637633774,3.2074878,175.76,175.69,106.08]
[1754637633980,3.28,175.75,175.69,106.0755462]
[1754637634182,3.28,175.75,175.69,100.3847462]
[1754637634377,3.28,175.75,175.7,5.6903]
[1754637634677,3.28,175.75,175.69,100.3847462]
[1754637634880,3.28,175.75,175.69,106.0753462]
[1754637635182,3.28,175.75,175.69,100.3847462]
[1754637635385,3.28,175.73,175.69,100.3847462]
[1754637635882,3.2074878,175.72,175.69,100.3847462]
[1754637636078,3.28,175.71,175.69,100.3847462]
[1754637636277,3.2074878,175.72,175.69,100.3847462]
[1754637636478,3.28,175.72,175.69,100.3847462]
[1754637636684,3.2074878,175.72,175.69,100.3847462]
[1754637636886,3.28,175.71,175.69,97.53681335]
[1754637637082,3.2074878,175.72,175.69,97.53681335]
[1754637637277,3.28,175.7,175.69,97.53681335]
[1754637638983,3.28,175.7,175.64,382.5]
[1754637639282,3.28,175.67,175.64,382.5]
[1754637639480,3.28,175.65,175.57,195.96574754]
[1754637639676,3.28,175.63,175.58,105.96]
[1754637639881,3.28,175.63,175.58,100.26187355]
[1754637640086,3.2074878,175.6,175.58,100.26187355]
[1754637640284,3.2074878,175.6,175.54,382.64]
[1754637640480,3.28,175.58,175.55,105.98]
[1754637640685,3.2074878,175.6,175.56,5.6948]
[1754637640884,3.28,175.6,175.55,96.0062776]
[1754637641186,7.12389174,175.59,175.58,5.6944]
[1754637641583,7.12389174,175.59,175.55,99.2137654]
[1754637641785,7.12389174,175.58,175.55,99.2137654]
[1754637641984,3.28,175.61,175.55,99.2137654]
[1754637641985,7.12389174,175.57,175.55,99.2137654]
[1754637642184,7.12389174,175.56,175.55,99.2137654]
[1754637642781,7.12389174,175.56,175.55,97.78567992]
[1754637642982,1.21109849,175.56,175.55,103.48567992]
[1754637643185,1.21109849,175.56,175.55,100.27819212]
[1754637643385,3.28,175.64,175.6,5.6935]
[1754637643581,3.28,175.64,175.61,106.04]
[1754637643781,3.28,175.66,175.61,109.2474878]
[1754637643985,3.28,175.64,175.61,109.2474878]
[1754637644588,3.28,175.64,175.62,5.6931]
[1754637644791,3.28,175.66,175.62,5.23301927]
[1754637644984,3.28,175.69,175.64,5.23301927]
[1754637645185,3.28,175.69,175.66,5.23301927]
[1754637645488,3.28,175.73,175.67,106.12]
[1754637645686,3.28,175.69,175.67,106.12]
[1754637645887,3.28,175.69,175.67,100.42294674]
[1754637646087,3.28,175.68,175.67,100.42294674]
[1754637646486,3.28,175.7,175.67,100.42294674]
[1754637646989,3.28,175.7,175.68,5.691]
[1754637647193,3.28,175.76,175.68,5.23301927]
[1754637647390,3.28,175.72,175.69,5.6907]
[1754637647789,5.91279325,175.74,175.69,5.6907]
[1754637647988,3.28,175.71,175.68,5.23301927]
[1754637648187,3.28,175.7,175.68,5.23301927]
[1754637648493,3.28,175.76,175.68,5.23301927]
[1754637648794,3.28,175.76,175.69,5.6906]
[1754637649291,3.28,175.76,175.7,5.6902]
[1754637649787,3.28,175.72,175.67,5.23301927]
[1754637649988,3.28,175.73,175.64,5.23301927]
[1754637650189,3.28,175.73,175.65,5.6919]
[1754637650388,3.28,175.71,175.65,112.0519]
[1754637650589,3.28,175.71,175.6,5.23301927]
[1754637650782,3.28,175.69,175.62,5.6928]
[1754637650993,3.28,175.67,175.63,106.4]
[1754637651492,5.91279325,175.66,175.63,106.4]
[1754637651697,5.23301927,175.73,175.63,106.4]
[1754637651884,5.23301927,175.74,175.64,5.23301927]
[1754637652091,5.23301927,175.73,175.64,3.12]
[1754637652292,0.21597131,175.72,175.64,3.12]
[1754637652492,5.23301927,175.74,175.65,5.6919]
[1754637652692,0.21597131,175.73,175.64,3.12]
[1754637653002,5.23301927,175.73,175.64,3.12]
[1754637653495,5.23301927,175.73,175.65,5.6919]
[1754637653691,5.23301927,175.73,175.64,8.35301927]
[1754637653994,3.28,175.74,175.65,3.12]
[1754637654388,3.28,175.74,175.67,5.6913]
[1754637654897,3.28,175.74,175.66,8.8118]
[1754637655092,3.28,175.74,175.66,3.12]
[1754637655292,5.23301927,175.74,175.66,3.12]
[1754637655492,3.28,175.73,175.66,3.12]
[1754637655898,5.23301927,175.75,175.66,3.12]
[1754637656100,5.23301927,175.77,175.67,3.12]
[1754637656501,5.23301927,175.77,175.68,5.691]
[1754637656701,5.23301927,175.77,175.7,3.12]
[1754637656900,5.23301927,175.79,175.7,8.35301927]
[1754637657099,5.23301927,175.79,175.71,3.12]
[1754637657303,5.23301927,175.81,175.71,3.12]
[1754637657897,7.11793592,175.8,175.72,106.4]
[1754637658100,5.23301927,175.81,175.72,106.4]
[1754637658101,10.39793592,175.79,175.72,103.82564607]
[1754637658299,10.39793592,175.78,175.72,103.82564607]
[1754637658498,3.28,175.76,175.73,3.12]
[1754637658697,7.11793592,175.75,175.74,3.12]
[1754637660099,3.28,175.74,175.72,99.09393892]
[1754637660398,7.11793592,175.73,175.72,93.86091965]
[1754637660592,10.39793592,175.73,175.72,93.86091965]
[1754637661601,7.11793592,175.73,175.66,387.95301927]
[1754637661791,10.14793592,175.72,175.67,106.32]
[1754637661991,3.03,175.7,175.67,102.04852877]
[1754637662198,10.14793592,175.69,175.67,102.04852877]
[1754637662497,7.11793592,175.68,175.67,105.35852877]
[1754637662702,7.11793592,175.68,175.67,111.04982877]
[1754637662901,7.11793592,175.68,175.67,103.9307181]
[1754637663102,7.11793592,175.68,175.67,98.2394181]
[1754637663399,7.11793592,175.68,175.67,109.6309181]
[1754637663599,3.03,175.74,175.67,100.6294181]
[1754637663797,3.03,175.73,175.7,5.23301927]
[1754637664605,3.03,175.73,175.71,5.69]
[1754637664794,5.23301927,175.8,175.72,106.36]
[1754637664995,8.26301927,175.8,175.72,106.36]
[1754637665205,3.03,175.79,175.72,106.36]
[1754637665509,5.23301927,175.78,175.72,106.36]
[1754637665702,3.03,175.77,175.72,106.36]
[1754637666003,5.23301927,175.83,175.72,111.59301927]
[1754637666203,3.03,175.82,175.74,5.689]
[1754637666606,3.03,175.82,175.72,111.59301927]
[1754637666804,3.03,175.82,175.76,2.84154033]
[1754637667005,3.03,175.82,175.72,111.59301927]
[1754637667206,3.03,175.82,175.75,5.6889]
[1754637667699,5.6867,175.82,175.74,5.6891]
[1754637667906,5.23301927,175.79,175.72,106.36]
[1754637668112,3.03,175.78,175.72,106.36]
[1754637668312,3.03,175.78,175.72,112.0497]
[1754637668611,3.03,175.78,175.72,106.36]
[1754637669407,3.03,175.78,175.72,112.0498]
[1754637669710,3.03,175.78,175.72,106.36]
[1754637670213,3.03,175.78,175.72,100.66606481]
[1754637670411,3.03,175.76,175.72,100.66606481]
[1754637672013,3.03,175.76,175.72,96.39492707]
[1754637672909,5.23301927,175.73,175.66,382.72]
[1754637673113,3.03,175.72,175.66,382.72]
[1754637673311,3.03,175.72,175.66,488.9]
[1754637673510,5.23301927,175.71,175.66,488.9]
[1754637673711,3.03,175.7,175.66,488.9]
[1754637674817,5.23301927,175.73,175.66,494.5915]
[1754637675007,3.03,175.69,175.66,494.5915]
[1754637675509,3.03,175.72,175.66,488.9]
[1754637675705,3.03,175.72,175.66,494.13301927]
[1754637675706,5.94840651,175.71,175.66,494.13301927]
[1754637675907,5.94840651,175.7,175.66,494.13301927]
[1754637676109,5.94840651,175.69,175.68,5.691]
[1754637676909,8.97840651,175.69,175.66,488.9]
[1754637677107,3.03,175.67,175.66,382.72]
[1754637677415,5.94840651,175.67,175.66,488.88]
[1754637678117,3.03,175.7,175.66,488.88]
[1754637678311,3.03,175.69,175.66,488.88]
[1754637678512,3.03,175.71,175.66,488.88]
[1754637679212,5.23301927,175.75,175.66,494.11301927]
[1754637679417,3.03,175.73,175.68,5.23301927]
[1754637680219,3.03,175.73,175.71,5.69]
[1754637680518,3.03,175.73,175.72,106.18]
[1754637682117,0.18243264,175.73,175.72,106.18]
[1754637682312,5.23301927,175.75,175.72,106.18]
[1754637682517,5.23301927,175.73,175.69,106.1]
[1754637683422,5.23301927,175.73,175.69,114.8108]
[1754637683614,5.23301927,175.75,175.69,106.1]
[1754637684018,5.23301927,175.73,175.69,106.1]
[1754637684217,5.23301927,175.72,175.69,106.1]
[1754637684412,5.23301927,175.74,175.69,109.12]
[1754637684620,3.03,175.72,175.7,3.02]
[1754637684921,3.03,175.71,175.69,106.1]
[1754637685127,3.03,175.71,175.69,109.12]
[1754637686329,5.23301927,175.75,175.69,109.41]
[1754637686519,5.23301927,175.73,175.69,106.1]
[1754637686922,5.23301927,175.71,175.69,106.1]
[1754637687817,7.12051886,175.7,175.63,3.31]
[1754637688116,5.23301927,175.68,175.64,3.31]
[1754637688422,3.03,175.65,175.63,103.6927603]
[1754637688617,7.12051886,175.64,175.63,103.6927603]
[1754637689526,10.15051886,175.64,175.63,103.6927603]
[1754637691929,10.15051886,175.64,175.63,99.41927358]
[1754637692228,15.38353813,175.64,175.6,104.50626178]
[1754637692428,3.28,175.62,175.6,104.50626178]
[1754637692627,10.40051886,175.61,175.6,104.50626178]
[1754637694328,10.40051886,175.61,175.6,98.80726588]
[1754637694518,7.12051886,175.61,175.6,98.80726588]
[1754637695629,10.40051886,175.61,175.6,98.80726588]
[1754637697432,10.40051886,175.61,175.6,95.95784014]
[1754637697735,7.12051886,175.61,175.54,5.6954]
[1754637698031,3.28,175.58,175.55,105.94]
[1754637698233,10.40051886,175.57,175.56,105.94]
[1754637700436,10.40051886,175.57,175.56,100.24049583]
[1754637701839,3.28,175.56,175.53,105.88]
[1754637702038,3.28,175.54,175.53,105.88]
[1754637702235,10.40051886,175.54,175.53,101.604808]
[1754637703539,7.12051886,175.54,175.53,101.604808]
[1754637703934,7.12051886,175.54,175.53,107.300808]
[1754637704138,7.12051886,175.54,175.53,101.604808]
[1754637705138,7.12051886,175.54,175.53,100.17556283]
[1754637706040,7.12051886,175.54,175.53,94.47956283]
[1754637706538,7.12051886,175.54,175.53,88.77942867]
[1754637706738,10.40051886,175.54,175.53,88.77942867]
[1754637708345,3.28,175.54,175.53,88.77942867]
[1754637709742,3.28,175.59,175.53,88.77942867]
[1754637710238,3.28,175.59,175.53,94.47542867]
[1754637711240,3.28,175.59,175.54,5.6957]
[1754637711441,3.28,175.59,175.53,88.77942867]
[1754637712142,3.28,175.57,175.53,88.77942867]
[1754637712343,0.42962878,175.57,175.53,88.77942867]
[1754637712544,1.38709122,175.58,175.53,88.77942867]
[1754637713641,5.23301927,175.56,175.5,105.8]
[1754637714548,3.28,175.56,175.5,105.8]
[1754637715151,1.38629909,175.57,175.5,105.8]
[1754637715850,5.23301927,175.55,175.5,105.8]
[1754637716648,5.23301927,175.59,175.51,3.15]
[1754637717143,5.23301927,175.59,175.51,5.6965]
[1754637717449,3.28,175.58,175.52,3.15]
[1754637717851,3.28,175.56,175.5,94.69755232]
[1754637718051,3.28,175.54,175.5,94.69755232]
[1754637718252,7.12622384,175.53,175.5,94.69755232]
[1754637718451,7.12622384,175.52,175.5,94.69755232]
[1754637718653,7.12622384,175.51,175.5,94.69755232]
[1754637718858,7.12622384,175.51,175.5,100.39455232]
[1754637719658,7.12622384,175.51,175.5,94.69755232]
[1754637719851,7.12622384,175.51,175.5,97.84755232]
[1754637720460,7.12622384,175.51,175.5,92.14624755]
[1754637721260,7.12622384,175.51,175.5,97.84324755]
[1754637721654,7.12622384,175.51,175.5,92.14624755]
[1754637722059,10.29622384,175.51,175.5,92.14624755]
[1754637722460,7.12622384,175.51,175.5,92.14624755]
[1754637727358,7.12622384,175.51,175.5,89.29548583]
[1754637727762,10.29622384,175.51,175.5,86.14548583]
[1754637728366,7.12622384,175.51,175.5,89.28548583]
[1754637728566,7.12622384,175.51,175.5,85.009402]
[1754637728768,7.12622384,175.51,175.5,90.706402]
[1754637728969,4.75464187,175.51,175.5,87.566402]
[1754637729165,3.21601407,175.62,175.54,5.6956]
[1754637729367,3.17,175.61,175.55,108.83601407]
[1754637729970,3.17,175.61,175.55,105.62]
[1754637730571,3.17,175.59,175.55,105.62]
[1754637731070,3.17,175.57,175.55,99.9192432]
[1754637731971,6.38601407,175.56,175.52,105.66]
[1754637732172,3.17,175.53,175.51,105.66]
[1754637733167,3.17,175.55,175.51,105.66]
[1754637733372,3.17,175.53,175.51,105.66]
[1754637733564,3.17,175.52,175.51,105.66]
[1754637735475,3.17,175.55,175.51,105.66]
[1754637735672,3.17,175.54,175.51,105.66]
[1754637735872,3.21601407,175.56,175.51,105.66]
[1754637736072,3.17,175.53,175.51,105.66]
[1754637736576,3.21601407,175.56,175.51,105.66]
[1754637736775,3.17,175.55,175.51,105.66]
[1754637737474,3.17,175.55,175.51,99.9586168]
[1754637738476,3.17,175.55,175.51,95.68257307]
[1754637738970,3.17,175.54,175.51,95.68257307]
[1754637739169,3.17,175.53,175.51,95.68257307]
[1754637739370,3.21601407,175.56,175.51,95.68257307]
[1754637739673,3.17,175.52,175.51,95.68257307]
[1754637740276,3.21601407,175.56,175.51,95.68257307]
[1754637740472,3.17,175.54,175.51,95.68257307]
[1754637740774,3.17,175.54,175.52,5.6961]
[1754637741276,3.17,175.57,175.52,3.21601407]
[1754637741673,3.17,175.63,175.56,3.21601407]
[1754637741870,382.82,175.74,175.59,3.21601407]
[1754637742075,3.17,175.65,175.59,3.21601407]
[1754637742279,3.17,175.65,175.61,3.21601407]
[1754637742574,3.17,175.64,175.61,3.21601407]
[1754637742779,3.17,175.63,175.61,3.21601407]
[1754637742968,3.17,175.65,175.62,105.66]
[1754637743171,3.17,175.63,175.62,105.66]
[1754637743972,3.17,175.67,175.62,105.66]
[1754637745279,3.17,175.65,175.62,105.66]
[1754637745578,3.17,175.63,175.58,105.64]
[1754637747977,3.17,175.61,175.58,79.99496764]
[1754637748180,3.17,175.59,175.58,79.99496764]
[1754637748386,10.2936201,175.59,175.58,79.99496764]
[1754637748574,10.2936201,175.59,175.58,75.7204425]
[1754637749778,3.17,175.58,175.54,488.68]
[1754637749977,3.17,175.56,175.54,488.68]
[1754637750179,10.2936201,175.55,175.54,105.6]
[1754637751582,10.2936201,175.55,175.49,3.21601407]
[1754637751782,3.03,175.53,175.5,105.6]
[1754637752079,3.03,175.51,175.5,105.6]
[1754637752279,10.1536201,175.51,175.5,105.6]
[1754637752781,10.1536201,175.51,175.5,111.297]
[1754637753083,10.1536201,175.51,175.5,105.6]
[1754637754278,7.1236201,175.51,175.5,105.6]
[1754637754584,10.1536201,175.51,175.5,105.6]
[1754637757682,7.1236201,175.51,175.5,105.6]